[Event "*** Titled Tuesday Blitz"]
[Site "Chess.com"]
[Date "2020.11.10"]
[Round "1"]
[White "Hasangatin_Ramil"]
[Black "wanyaland"]
[Result "1-0"]
[WhiteElo "2576"]
[BlackElo "2250"]
[TimeControl "180+1"]
[EndTime "10:09:17 PST"]
[Termination "Hasangatin_Ramil won on time"]

1. e4 {[%clk 0:02:43.4]} 1... c5 {[%clk 0:02:59.6]} 2. Nf3 {[%clk 0:02:41.7]}
2... e6 {[%clk 0:02:59]} 3. g3 {[%clk 0:02:41.3]} 3... a6 {[%clk 0:02:57.9]} 4.
Bg2 {[%clk 0:02:40.5]} 4... d6 {[%clk 0:02:57.4]} 5. O-O {[%clk 0:02:39.9]} 5...
Nc6 {[%clk 0:02:56.3]} 6. c3 {[%clk 0:02:38.5]} 6... Nf6 {[%clk 0:02:56.4]} 7.
Re1 {[%clk 0:02:37.7]} 7... Be7 {[%clk 0:02:55.5]} 8. d4 {[%clk 0:02:36.8]} 8...
cxd4 {[%clk 0:02:56.4]} 9. cxd4 {[%clk 0:02:37.7]} 9... e5 {[%clk 0:02:56.4]}
10. d5 {[%clk 0:02:25.4]} 10... Nb8 {[%clk 0:02:44.3]} 11. Nc3 {[%clk
0:02:25.7]} 11... O-O {[%clk 0:02:43.8]} 12. Nd2 {[%clk 0:02:22.6]} 12... Nbd7
{[%clk 0:02:40.9]} 13. Nb3 {[%clk 0:02:22.2]} 13... Re8 {[%clk 0:02:39.7]} 14.
Be3 {[%clk 0:02:20.5]} 14... b5 {[%clk 0:02:38.3]} 15. a4 {[%clk 0:02:17.7]}
15... b4 {[%clk 0:02:37.7]} 16. Nb1 {[%clk 0:02:10.6]} 16... a5 {[%clk
0:02:37.8]} 17. N1d2 {[%clk 0:02:10.1]} 17... Ba6 {[%clk 0:02:36]} 18. Rc1
{[%clk 0:02:09.3]} 18... Bf8 {[%clk 0:02:30]} 19. Nc4 {[%clk 0:01:56.7]} 19...
Bxc4 {[%clk 0:02:28.8]} 20. Rxc4 {[%clk 0:01:57.6]} 20... Nb6 {[%clk 0:02:29.6]}
21. Rc6 {[%clk 0:01:47.1]} 21... Nxa4 {[%clk 0:02:26.5]} 22. Qa1 {[%clk
0:01:46.4]} 22... Nc5 {[%clk 0:02:24.1]} 23. Nxc5 {[%clk 0:01:38.9]} 23... dxc5
{[%clk 0:02:25]} 24. Bxc5 {[%clk 0:01:33.2]} 24... Bxc5 {[%clk 0:02:23.7]} 25.
Rxc5 {[%clk 0:01:34.1]} 25... a4 {[%clk 0:02:18.7]} 26. Rec1 {[%clk 0:01:28.9]}
26... Qb6 {[%clk 0:02:16.7]} 27. Rc6 {[%clk 0:01:18.5]} 27... Qd4 {[%clk
0:02:16.1]} 28. Rd1 {[%clk 0:01:18.2]} 28... Qa7 {[%clk 0:02:13.1]} 29. d6
{[%clk 0:01:18.1]} 29... Red8 {[%clk 0:02:10.6]} 30. Qa2 {[%clk 0:01:11.2]}
30... Ng4 {[%clk 0:02:01.9]} 31. Rd2 {[%clk 0:01:08.9]} 31... Rac8 {[%clk
0:01:45.3]} 32. Rxc8 {[%clk 0:00:59.9]} 32... Rxc8 {[%clk 0:01:46.2]} 33. Bh3
{[%clk 0:01:00.2]} 33... h5 {[%clk 0:01:44.1]} 34. Kg2 {[%clk 0:00:52.4]} 34...
Rd8 {[%clk 0:01:42.1]} 35. Bxg4 {[%clk 0:00:50.3]} 35... hxg4 {[%clk 0:01:40.9]}
36. Qd5 {[%clk 0:00:50.5]} 36... a3 {[%clk 0:01:26]} 37. bxa3 {[%clk 0:00:51.4]}
37... bxa3 {[%clk 0:01:26.3]} 38. Qxe5 {[%clk 0:00:45.1]} 38... a2 {[%clk
0:01:26.1]} 39. Qa1 {[%clk 0:00:39.1]} 39... Qb7 {[%clk 0:01:16.7]} 40. Re2
{[%clk 0:00:30.2]} 40... Rxd6 {[%clk 0:01:11.7]} 41. Qxa2 {[%clk 0:00:29.4]}
41... Rd3 {[%clk 0:01:10.5]} 42. Qc4 {[%clk 0:00:24.8]} 42... Qd7 {[%clk
0:01:03.5]} 43. Qc5 {[%clk 0:00:16.2]} 43... g6 {[%clk 0:00:58.8]} 44. Qe5
{[%clk 0:00:14.4]} 44... Rd1 {[%clk 0:00:56.9]} 45. Qf4 {[%clk 0:00:08.9]} 45...
Kg7 {[%clk 0:00:52.2]} 46. e5 {[%clk 0:00:08.7]} 46... Qd5+ {[%clk 0:00:48.5]}
47. Qe4 {[%clk 0:00:08.5]} 47... Qxe4+ {[%clk 0:00:46.5]} 48. Rxe4 {[%clk
0:00:09.4]} 48... Rd5 {[%clk 0:00:41.8]} 49. Kf1 {[%clk 0:00:09.6]} 49... Kf8
{[%clk 0:00:38.6]} 50. Ke2 {[%clk 0:00:09.6]} 50... Ke7 {[%clk 0:00:38.4]} 51.
Ke3 {[%clk 0:00:09.9]} 51... Ke6 {[%clk 0:00:35.1]} 52. Rxg4 {[%clk 0:00:09.7]}
52... Kf5 {[%clk 0:00:19.6]} 53. Rf4+ {[%clk 0:00:09.5]} 53... Ke6 {[%clk
0:00:18.5]} 54. Rf6+ {[%clk 0:00:08.6]} 54... Ke7 {[%clk 0:00:18.8]} 55. f4
{[%clk 0:00:08.3]} 55... Rd1 {[%clk 0:00:18.6]} 56. h4 {[%clk 0:00:08.3]} 56...
Rg1 {[%clk 0:00:15.9]} 57. Kf3 {[%clk 0:00:08.5]} 57... Ra1 {[%clk 0:00:15.3]}
58. Kg4 {[%clk 0:00:09.4]} 58... Ra3 {[%clk 0:00:13.6]} 59. Rd6 {[%clk
0:00:10.3]} 59... Kf8 {[%clk 0:00:11.1]} 60. Rf6 {[%clk 0:00:10.7]} 60... Ke7
{[%clk 0:00:10.9]} 61. Rb6 {[%clk 0:00:10.9]} 61... Kf8 {[%clk 0:00:10.7]} 62.
Rb7 {[%clk 0:00:10.9]} 62... Ke8 {[%clk 0:00:09.8]} 63. Rc7 {[%clk 0:00:09.9]}
63... Kf8 {[%clk 0:00:08.6]} 64. Kg5 {[%clk 0:00:10.3]} 64... Rxg3+ {[%clk
0:00:06.5]} 65. Kf6 {[%clk 0:00:10.4]} 65... Kg8 {[%clk 0:00:06]} 66. Rc8+
{[%clk 0:00:10.4]} 66... Kh7 {[%clk 0:00:05]} 67. Rc7 {[%clk 0:00:09.5]} 67...
Rg4 {[%clk 0:00:02.7]} 68. Rxf7+ {[%clk 0:00:07.4]} 68... Kh6 {[%clk 0:00:03.2]}
69. Ke7 {[%clk 0:00:05]} 69... Rxh4 {[%clk 0:00:03.1]} 70. e6 {[%clk 0:00:05.3]}
70... Rh1 {[%clk 0:00:02.8]} 71. Kf8 {[%clk 0:00:05.6]} 71... Re1 {[%clk
0:00:01.4]} 72. e7 {[%clk 0:00:06]} 1-0

[Event "*** Titled Tuesday Blitz"]
[Site "Chess.com"]
[Date "2020.11.10"]
[Round "1"]
[White "tsaruk_maks"]
[Black "VinzentSpitzl"]
[Result "1/2-1/2"]
[WhiteElo "2616"]
[BlackElo "2312"]
[TimeControl "180+1"]
[EndTime "10:09:18 PST"]
[Termination "Game drawn by repetition"]

1. e4 {[%clk 0:02:57.9]} 1... c5 {[%clk 0:02:59.3]} 2. Nf3 {[%clk 0:02:57.9]}
2... d6 {[%clk 0:02:59.8]} 3. d4 {[%clk 0:02:58.2]} 3... cxd4 {[%clk 0:03:00.2]}
4. Nxd4 {[%clk 0:02:58.7]} 4... Nf6 {[%clk 0:03:01.1]} 5. Nc3 {[%clk 0:02:59.3]}
5... a6 {[%clk 0:03:01.7]} 6. g3 {[%clk 0:02:59.7]} 6... e5 {[%clk 0:03:00.5]}
7. Nb3 {[%clk 0:03:00.2]} 7... Be6 {[%clk 0:02:55.4]} 8. Bg2 {[%clk 0:03:00.5]}
8... Nbd7 {[%clk 0:02:52.7]} 9. O-O {[%clk 0:03:01.1]} 9... Be7 {[%clk
0:02:52.6]} 10. a4 {[%clk 0:03:01.8]} 10... O-O {[%clk 0:02:49.2]} 11. Re1
{[%clk 0:03:02.1]} 11... Rc8 {[%clk 0:02:47.7]} 12. h3 {[%clk 0:03:01.2]} 12...
Qc7 {[%clk 0:02:46.6]} 13. Nd2 {[%clk 0:02:55.5]} 13... Nb6 {[%clk 0:02:42.6]}
14. a5 {[%clk 0:02:55.9]} 14... Nc4 {[%clk 0:02:42]} 15. Nxc4 {[%clk 0:02:56.5]}
15... Bxc4 {[%clk 0:02:39.8]} 16. Bg5 {[%clk 0:02:30.4]} 16... Rfd8 {[%clk
0:02:29.3]} 17. Bxf6 {[%clk 0:02:25.4]} 17... Bxf6 {[%clk 0:02:30.2]} 18. Nd5
{[%clk 0:02:26]} 18... Bxd5 {[%clk 0:02:29.8]} 19. Qxd5 {[%clk 0:02:26.9]} 19...
Qc6 {[%clk 0:01:58.9]} 20. Qxc6 {[%clk 0:01:52]} 20... Rxc6 {[%clk 0:01:59.8]}
21. c3 {[%clk 0:01:52.5]} 21... h5 {[%clk 0:01:55]} 22. h4 {[%clk 0:01:51.9]}
22... Kf8 {[%clk 0:01:36.9]} 23. Red1 {[%clk 0:01:51.3]} 23... Ke7 {[%clk
0:01:34.8]} 24. Ra4 {[%clk 0:01:48]} 24... Rc5 {[%clk 0:01:27.9]} 25. Bf1 {[%clk
0:01:38.7]} 25... d5 {[%clk 0:01:19.6]} 26. exd5 {[%clk 0:01:18]} 26... Rcxd5
{[%clk 0:01:17]} 27. Rxd5 {[%clk 0:01:18.8]} 27... Rxd5 {[%clk 0:01:17.6]} 28.
Rb4 {[%clk 0:01:19.5]} 28... Rd7 {[%clk 0:01:12]} 29. Bg2 {[%clk 0:01:18.3]}
29... Kd6 {[%clk 0:00:40.3]} 30. Bxb7 {[%clk 0:01:15.8]} 30... Bd8 {[%clk
0:00:38.4]} 31. Bc8 {[%clk 0:00:47.8]} 31... Ra7 {[%clk 0:00:10.7]} 32. Ra4
{[%clk 0:00:31]} 32... Kc5 {[%clk 0:00:11]} 33. Ra1 {[%clk 0:00:14.2]} 33... Bc7
{[%clk 0:00:03.1]} 34. Kg2 {[%clk 0:00:13]} 34... Kc4 {[%clk 0:00:03]} 35. Bd7
{[%clk 0:00:03]} 35... Kb3 {[%clk 0:00:02.7]} 36. Be8 {[%clk 0:00:02.6]} 36...
f6 {[%clk 0:00:02.4]} 37. Bxh5 {[%clk 0:00:02.1]} 37... Kxb2 {[%clk 0:00:02.9]}
38. Rd1 {[%clk 0:00:02.5]} 38... Kxc3 {[%clk 0:00:03]} 39. Rd7 {[%clk
0:00:03.1]} 39... Bb6 {[%clk 0:00:03.5]} 40. Rxa7 {[%clk 0:00:01.6]} 40... Bxa7
{[%clk 0:00:04.4]} 41. Be2 {[%clk 0:00:01.9]} 41... Kb4 {[%clk 0:00:04.8]} 42.
Bxa6 {[%clk 0:00:02.8]} 42... Kxa5 {[%clk 0:00:05.4]} 43. Bc8 {[%clk 0:00:02.8]}
43... Kb6 {[%clk 0:00:05.7]} 44. Kf3 {[%clk 0:00:03.7]} 44... Kc7 {[%clk
0:00:06.6]} 45. Bf5 {[%clk 0:00:03.7]} 45... Kd6 {[%clk 0:00:06.5]} 46. Kg2
{[%clk 0:00:03.2]} 46... Ke7 {[%clk 0:00:06.9]} 47. f3 {[%clk 0:00:03.7]} 47...
Kf7 {[%clk 0:00:07.5]} 48. h5 {[%clk 0:00:04.3]} 48... Bc5 {[%clk 0:00:07.5]}
49. Kh3 {[%clk 0:00:04.9]} 49... Bd4 {[%clk 0:00:07.9]} 50. Kg4 {[%clk
0:00:05.6]} 50... Bc5 {[%clk 0:00:08.5]} 51. Be4 {[%clk 0:00:05.5]} 51... Bf2
{[%clk 0:00:07.6]} 52. Kf5 {[%clk 0:00:06.4]} 52... Bxg3 {[%clk 0:00:07.5]} 53.
Bd5+ {[%clk 0:00:07.1]} 53... Kf8 {[%clk 0:00:07.9]} 54. Kg6 {[%clk 0:00:08]}
54... Bf4 {[%clk 0:00:08.4]} 55. Kf5 {[%clk 0:00:07.4]} 55... Bh6 {[%clk
0:00:08.9]} 56. Ba2 {[%clk 0:00:07.8]} 56... Ke7 {[%clk 0:00:09.5]} 57. Bc4
{[%clk 0:00:08.1]} 57... Kd6 {[%clk 0:00:10.4]} 58. Ba6 {[%clk 0:00:07.8]} 58...
Kc5 {[%clk 0:00:11.3]} 59. Bb7 {[%clk 0:00:08.1]} 59... Kd4 {[%clk 0:00:11.7]}
60. Ba8 {[%clk 0:00:08]} 60... Ke3 {[%clk 0:00:12.2]} 61. Be4 {[%clk 0:00:08.6]}
61... Kf2 {[%clk 0:00:12.7]} 62. Ba8 {[%clk 0:00:08.9]} 62... Kg3 {[%clk
0:00:13.6]} 63. Bd5 {[%clk 0:00:08.8]} 63... Kh4 {[%clk 0:00:14.5]} 64. Bf7
{[%clk 0:00:09.4]} 64... Kg3 {[%clk 0:00:14.9]} 65. Bd5 {[%clk 0:00:09.7]} 65...
Kf2 {[%clk 0:00:14.2]} 66. Be4 {[%clk 0:00:09]} 66... Ke3 {[%clk 0:00:15.1]} 67.
Bc6 {[%clk 0:00:08.7]} 67... Kd4 {[%clk 0:00:16]} 68. Be8 {[%clk 0:00:09]} 68...
Kc5 {[%clk 0:00:16.9]} 69. Bf7 {[%clk 0:00:08.1]} 69... Kd6 {[%clk 0:00:16.1]}
70. Bc4 {[%clk 0:00:08.4]} 70... Ke7 {[%clk 0:00:16.3]} 71. Bd5 {[%clk
0:00:08.7]} 71... Kd7 {[%clk 0:00:16.2]} 72. Be4 {[%clk 0:00:08.2]} 72... Ke7
{[%clk 0:00:16.4]} 73. Ba8 {[%clk 0:00:09.1]} 73... Kd6 {[%clk 0:00:17.3]} 74.
Be4 {[%clk 0:00:09.6]} 74... Kc5 {[%clk 0:00:17.6]} 75. Ba8 {[%clk 0:00:10.4]}
75... Kd4 {[%clk 0:00:17.8]} 76. Be4 {[%clk 0:00:11.3]} 76... Kc5 {[%clk
0:00:14.5]} 77. Ba8 {[%clk 0:00:11.4]} 77... Kd6 {[%clk 0:00:15.4]} 78. Be4
{[%clk 0:00:12]} 78... Ke7 {[%clk 0:00:16.3]} 79. Ba8 {[%clk 0:00:12.1]} 79...
Kf8 {[%clk 0:00:17.2]} 80. Be4 {[%clk 0:00:12.9]} 80... Kg8 {[%clk 0:00:17.7]}
81. Ba8 {[%clk 0:00:13.8]} 81... Kh7 {[%clk 0:00:17.8]} 82. Be4 {[%clk
0:00:11.1]} 82... Bd2 {[%clk 0:00:18.2]} 83. Kg4+ {[%clk 0:00:10.2]} 83... Kh6
{[%clk 0:00:18.5]} 84. Bg6 {[%clk 0:00:11.1]} 84... Be3 {[%clk 0:00:15.7]} 85.
Kf5 {[%clk 0:00:11.7]} 85... Bd2 {[%clk 0:00:13.3]} 86. Kg4 {[%clk 0:00:12.1]}
86... Bg5 {[%clk 0:00:13.1]} 87. Kf5 {[%clk 0:00:12.4]} 87... Bf4 {[%clk
0:00:13.3]} 88. Kg4 {[%clk 0:00:12.3]} 88... Bg5 {[%clk 0:00:13.8]} 89. Kf5
{[%clk 0:00:12.9]} 89... Bf4 {[%clk 0:00:14.7]} 90. Kg4 {[%clk 0:00:13.2]} 90...
Bg5 {[%clk 0:00:15.6]} 1/2-1/2

[Event "*** Titled Tuesday Blitz"]
[Site "Chess.com"]
[Date "2020.11.10"]
[Round "1"]
[White "NovakCabarkapa"]
[Black "MaxLeto"]
[Result "1/2-1/2"]
[WhiteElo "2731"]
[BlackElo "2392"]
[TimeControl "180+1"]
[EndTime "10:09:25 PST"]
[Termination "Game drawn - timeout vs insufficient material"]

1. d4 {[%clk 0:02:59.3]} 1... d5 {[%clk 0:02:56.5]} 2. Nc3 {[%clk 0:02:56.5]}
2... Nf6 {[%clk 0:02:55.3]} 3. Bf4 {[%clk 0:02:34]} 3... Bf5 {[%clk 0:02:51.8]}
4. f3 {[%clk 0:02:33]} 4... e6 {[%clk 0:02:48.5]} 5. Qd2 {[%clk 0:02:31.9]} 5...
c5 {[%clk 0:02:44.4]} 6. Nb5 {[%clk 0:02:29]} 6... Na6 {[%clk 0:02:40.5]} 7. e3
{[%clk 0:02:28.8]} 7... Be7 {[%clk 0:02:28.7]} 8. g4 {[%clk 0:02:28]} 8... Bg6
{[%clk 0:02:28.6]} 9. h4 {[%clk 0:02:27.9]} 9... h5 {[%clk 0:01:39]} 10. g5
{[%clk 0:02:25.6]} 10... Nd7 {[%clk 0:01:38.7]} 11. c3 {[%clk 0:02:24.7]} 11...
Qb6 {[%clk 0:01:32.5]} 12. a4 {[%clk 0:02:21.6]} 12... O-O {[%clk 0:01:15.7]}
13. Nh3 {[%clk 0:02:12]} 13... Rfe8 {[%clk 0:01:14.4]} 14. Bh2 {[%clk
0:02:05.5]} 14... cxd4 {[%clk 0:01:09.1]} 15. exd4 {[%clk 0:02:04.5]} 15... Bf5
{[%clk 0:01:01.4]} 16. Nf4 {[%clk 0:01:59.8]} 16... g6 {[%clk 0:01:01.9]} 17.
Bd3 {[%clk 0:01:57.4]} 17... Bf8 {[%clk 0:00:55.6]} 18. O-O {[%clk 0:01:55.7]}
18... Qc6 {[%clk 0:00:49]} 19. Bxf5 {[%clk 0:01:46.7]} 19... exf5 {[%clk
0:00:49]} 20. Nd3 {[%clk 0:01:45.2]} 20... Re6 {[%clk 0:00:40.7]} 21. b3 {[%clk
0:01:38.2]} 21... Rae8 {[%clk 0:00:37.9]} 22. Rae1 {[%clk 0:01:37.4]} 22... Qb6
{[%clk 0:00:30.5]} 23. Nf4 {[%clk 0:01:31.8]} 23... Rxe1 {[%clk 0:00:28.1]} 24.
Rxe1 {[%clk 0:01:32.7]} 24... Rxe1+ {[%clk 0:00:26.4]} 25. Qxe1 {[%clk
0:01:33.6]} 25... Qc6 {[%clk 0:00:20.6]} 26. Nxa7 {[%clk 0:01:29.8]} 26... Qb6
{[%clk 0:00:20.3]} 27. Nb5 {[%clk 0:01:29.8]} 27... Qc6 {[%clk 0:00:20.5]} 28.
Qe8 {[%clk 0:01:28.2]} 28... Kg7 {[%clk 0:00:16.7]} 29. Nd3 {[%clk 0:01:15.5]}
29... Qe6 {[%clk 0:00:04.3]} 30. Qxe6 {[%clk 0:00:59.8]} 30... fxe6 {[%clk
0:00:05.2]} 31. Kf2 {[%clk 0:00:43.5]} 31... Nab8 {[%clk 0:00:05.1]} 32. Bxb8
{[%clk 0:00:39.5]} 32... Nxb8 {[%clk 0:00:05.1]} 33. Nc5 {[%clk 0:00:40.2]}
33... Bxc5 {[%clk 0:00:03.6]} 34. dxc5 {[%clk 0:00:41.1]} 34... Kf7 {[%clk
0:00:02.8]} 35. Nd6+ {[%clk 0:00:40.7]} 35... Ke7 {[%clk 0:00:02.7]} 36. Nxb7
{[%clk 0:00:40.9]} 36... Kd7 {[%clk 0:00:01.8]} 37. b4 {[%clk 0:00:41.3]} 37...
Kc6 {[%clk 0:00:02.3]} 38. Na5+ {[%clk 0:00:41.6]} 38... Kd7 {[%clk 0:00:02.3]}
39. b5 {[%clk 0:00:42.1]} 39... e5 {[%clk 0:00:02.6]} 40. c6+ {[%clk 0:00:42.5]}
40... Kd6 {[%clk 0:00:03.1]} 41. Nb7+ {[%clk 0:00:43]} 41... Kc7 {[%clk
0:00:02.8]} 42. Nc5 {[%clk 0:00:43.4]} 42... Kd6 {[%clk 0:00:03]} 43. Nb7+
{[%clk 0:00:34.6]} 43... Kc7 {[%clk 0:00:03.2]} 44. a5 {[%clk 0:00:35.3]} 44...
e4 {[%clk 0:00:02.3]} 45. Ke3 {[%clk 0:00:31.1]} 45... Nxc6 {[%clk 0:00:01.9]}
46. bxc6 {[%clk 0:00:30.9]} 46... Kxc6 {[%clk 0:00:02.8]} 47. Nd6 {[%clk
0:00:30.2]} 47... Kxd6 {[%clk 0:00:02.7]} 48. fxe4 {[%clk 0:00:16.9]} 48... dxe4
{[%clk 0:00:03.6]} 49. Kd4 {[%clk 0:00:16]} 49... Kc6 {[%clk 0:00:03.9]} 50. c4
{[%clk 0:00:16.1]} 50... Kc7 {[%clk 0:00:04]} 51. c5 {[%clk 0:00:14.8]} 51...
Kc6 {[%clk 0:00:04.2]} 52. a6 {[%clk 0:00:14.4]} 52... Kc7 {[%clk 0:00:04.7]}
53. Ke3 {[%clk 0:00:14.4]} 53... Kc6 {[%clk 0:00:04.9]} 54. Kf4 {[%clk
0:00:14.9]} 54... Kc7 {[%clk 0:00:05.1]} 55. Ke3 {[%clk 0:00:13.9]} 55... Kc6
{[%clk 0:00:05.4]} 56. Kd4 {[%clk 0:00:14.5]} 56... Kc7 {[%clk 0:00:05.7]} 57.
Kc4 {[%clk 0:00:14.9]} 57... Kc6 {[%clk 0:00:05.9]} 58. a7 {[%clk 0:00:14.1]}
58... Kb7 {[%clk 0:00:06]} 59. Kd5 {[%clk 0:00:14.5]} 59... e3 {[%clk
0:00:05.9]} 60. c6+ {[%clk 0:00:12.8]} 60... Kxa7 {[%clk 0:00:06.4]} 61. Kd6
{[%clk 0:00:12.9]} 61... e2 {[%clk 0:00:06.6]} 62. c7 {[%clk 0:00:13.6]} 62...
e1=Q {[%clk 0:00:06.9]} 63. c8=Q {[%clk 0:00:14.2]} 63... Qd2+ {[%clk
0:00:06.5]} 64. Ke6 {[%clk 0:00:14.1]} 64... Qe3+ {[%clk 0:00:05.8]} 65. Kf6
{[%clk 0:00:14.3]} 65... f4 {[%clk 0:00:06.2]} 66. Qc7+ {[%clk 0:00:06.8]} 66...
Ka6 {[%clk 0:00:06.1]} 67. Qc6+ {[%clk 0:00:07.1]} 67... Ka5 {[%clk 0:00:05.9]}
68. Kxg6 {[%clk 0:00:04.4]} 68... f3 {[%clk 0:00:06.1]} 69. Qf6 {[%clk
0:00:04.2]} 69... f2 {[%clk 0:00:05.9]} 70. Kh7 {[%clk 0:00:03.1]} 70... Qd3+
{[%clk 0:00:06]} 71. g6 {[%clk 0:00:03.1]} 71... f1=Q {[%clk 0:00:06.7]} 72.
Qxf1 {[%clk 0:00:02.7]} 72... Qxf1 {[%clk 0:00:07.6]} 73. g7 {[%clk 0:00:03.6]}
73... Qf7 {[%clk 0:00:07.7]} 74. Kh8 {[%clk 0:00:03.7]} 74... Qf6 {[%clk
0:00:08.1]} 75. Kh7 {[%clk 0:00:04.1]} 75... Qf5+ {[%clk 0:00:08.1]} 76. Kh8
{[%clk 0:00:04.7]} 76... Qe5 {[%clk 0:00:06.8]} 77. Kh7 {[%clk 0:00:05]} 77...
Qe4+ {[%clk 0:00:06.9]} 78. Kh8 {[%clk 0:00:05.5]} 78... Qd4 {[%clk 0:00:04.1]}
79. Kh7 {[%clk 0:00:05.6]} 79... Qd7 {[%clk 0:00:02.7]} 80. Kh8 {[%clk
0:00:05.8]} 80... Qd4 {[%clk 0:00:01.4]} 81. Kh7 {[%clk 0:00:06.1]} 81... Qd3+
{[%clk 0:00:01.4]} 82. Kh6 {[%clk 0:00:06.3]} 82... Qd4 {[%clk 0:00:01.4]} 83.
g8=Q {[%clk 0:00:06.3]} 83... Qxh4 {[%clk 0:00:02.2]} 84. Qg5+ {[%clk
0:00:06.2]} 84... Qxg5+ {[%clk 0:00:02]} 85. Kxg5 {[%clk 0:00:07.1]} 85... Kb4
{[%clk 0:00:02.4]} 86. Kh4 {[%clk 0:00:07.3]} 1/2-1/2

[Event "*** Titled Tuesday Blitz"]
[Site "Chess.com"]
[Date "2020.11.10"]
[Round "1"]
[White "SergeyShtyka"]
[Black "tdf98pantani"]
[Result "0-1"]
[WhiteElo "2383"]
[BlackElo "2738"]
[TimeControl "180+1"]
[EndTime "10:09:28 PST"]
[Termination "tdf98pantani won on time"]

1. e4 {[%clk 0:02:57.2]} 1... e5 {[%clk 0:02:58.7]} 2. Nf3 {[%clk 0:02:57.2]}
2... Nc6 {[%clk 0:02:59]} 3. Nc3 {[%clk 0:02:57.5]} 3... Nf6 {[%clk 0:02:58.6]}
4. Bb5 {[%clk 0:02:57.5]} 4... Bd6 {[%clk 0:02:57.9]} 5. O-O {[%clk 0:02:56.6]}
5... O-O {[%clk 0:02:57.8]} 6. d3 {[%clk 0:02:56.1]} 6... h6 {[%clk 0:02:55.8]}
7. h3 {[%clk 0:02:55.8]} 7... Re8 {[%clk 0:02:55.2]} 8. Be3 {[%clk 0:02:51.5]}
8... Bf8 {[%clk 0:02:55.1]} 9. a3 {[%clk 0:02:49.7]} 9... d6 {[%clk 0:02:50.5]}
10. Bc4 {[%clk 0:02:36.1]} 10... Be6 {[%clk 0:02:48.5]} 11. Bxe6 {[%clk
0:02:34.5]} 11... fxe6 {[%clk 0:02:48]} 12. d4 {[%clk 0:02:26.8]} 12... exd4
{[%clk 0:02:47.2]} 13. Nxd4 {[%clk 0:02:27]} 13... Nxd4 {[%clk 0:02:43.4]} 14.
Bxd4 {[%clk 0:02:25.9]} 14... e5 {[%clk 0:02:41.1]} 15. Be3 {[%clk 0:02:25.4]}
15... Qd7 {[%clk 0:02:41]} 16. Qf3 {[%clk 0:02:09.7]} 16... Qf7 {[%clk
0:02:40.4]} 17. Rad1 {[%clk 0:02:07.2]} 17... g6 {[%clk 0:02:35.9]} 18. Nd5
{[%clk 0:02:05.8]} 18... Nxd5 {[%clk 0:02:34.2]} 19. Qxf7+ {[%clk 0:02:05.8]}
19... Kxf7 {[%clk 0:02:34.5]} 20. Rxd5 {[%clk 0:02:05.6]} 20... Ke6 {[%clk
0:02:30.7]} 21. f3 {[%clk 0:02:04.4]} 21... c6 {[%clk 0:02:30]} 22. Rd3 {[%clk
0:02:03.8]} 22... d5 {[%clk 0:02:30.3]} 23. c3 {[%clk 0:02:01.1]} 23... Red8
{[%clk 0:02:18.7]} 24. Rfd1 {[%clk 0:02:00.5]} 24... b6 {[%clk 0:02:15]} 25. Kf2
{[%clk 0:01:58.8]} 25... Rd7 {[%clk 0:02:15]} 26. Ke2 {[%clk 0:01:55.8]} 26...
Rad8 {[%clk 0:02:14.7]} 27. R3d2 {[%clk 0:01:54.5]} 27... b5 {[%clk 0:02:07.7]}
28. Rd3 {[%clk 0:01:47.2]} 28... a5 {[%clk 0:02:07.2]} 29. R3d2 {[%clk 0:01:47]}
29... Rc8 {[%clk 0:01:36]} 30. Rd3 {[%clk 0:01:34.9]} 30... b4 {[%clk
0:01:34.5]} 31. axb4 {[%clk 0:01:34.8]} 31... axb4 {[%clk 0:01:34.8]} 32. Ra1
{[%clk 0:01:33.4]} 32... bxc3 {[%clk 0:01:31.8]} 33. bxc3 {[%clk 0:01:33.2]}
33... Rb7 {[%clk 0:01:26.9]} 34. exd5+ {[%clk 0:01:28.9]} 34... cxd5 {[%clk
0:01:26.7]} 35. Ra6+ {[%clk 0:01:28.9]} 35... Bd6 {[%clk 0:01:23.7]} 36. Bxh6
{[%clk 0:01:24.2]} 36... Rb2+ {[%clk 0:01:22.8]} 37. Rd2 {[%clk 0:01:23.9]}
37... Rb3 {[%clk 0:01:18.3]} 38. c4 {[%clk 0:01:13.3]} 38... d4 {[%clk
0:01:18.5]} 39. g4 {[%clk 0:01:02.1]} 39... Kd7 {[%clk 0:01:08.1]} 40. Ra7+
{[%clk 0:00:58.6]} 40... Ke6 {[%clk 0:01:02.6]} 41. Ra6 {[%clk 0:00:58.6]} 41...
Rc3 {[%clk 0:00:41.7]} 42. Rb2 {[%clk 0:00:45.9]} 42... Kd7 {[%clk 0:00:31.7]}
43. Ra7+ {[%clk 0:00:40.5]} 43... Rc7 {[%clk 0:00:32.2]} 44. Rxc7+ {[%clk
0:00:39.3]} 44... Kxc7 {[%clk 0:00:32.8]} 45. h4 {[%clk 0:00:34.8]} 45... Rxc4
{[%clk 0:00:29.5]} 46. Ra2 {[%clk 0:00:31.4]} 46... Rc3 {[%clk 0:00:28.5]} 47.
Ra7+ {[%clk 0:00:29.6]} 47... Kc6 {[%clk 0:00:27.9]} 48. Rg7 {[%clk 0:00:29.4]}
48... d3+ {[%clk 0:00:27]} 49. Kd1 {[%clk 0:00:23.8]} 49... Rb3 {[%clk
0:00:21.7]} 50. Rxg6 {[%clk 0:00:20.9]} 50... Kd5 {[%clk 0:00:22.1]} 51. Rg8
{[%clk 0:00:14.8]} 51... Bb4 {[%clk 0:00:16.3]} 52. Bc1 {[%clk 0:00:10.4]} 52...
Rb1 {[%clk 0:00:15.7]} 53. Rd8+ {[%clk 0:00:10.1]} 53... Kc4 {[%clk 0:00:15.8]}
54. Rc8+ {[%clk 0:00:09.7]} 54... Kd4 {[%clk 0:00:15.9]} 55. Rd8+ {[%clk
0:00:09.8]} 55... Kc4 {[%clk 0:00:16]} 56. Rc8+ {[%clk 0:00:10.2]} 56... Kb3
{[%clk 0:00:16.5]} 57. h5 {[%clk 0:00:08.1]} 57... d2 {[%clk 0:00:16.6]} 58. h6
{[%clk 0:00:08.3]} 58... dxc1=Q+ {[%clk 0:00:15.8]} 59. Rxc1 {[%clk 0:00:08.2]}
59... Rb2 {[%clk 0:00:13.9]} 60. h7 {[%clk 0:00:04.6]} 60... Rd2+ {[%clk
0:00:12.3]} 61. Ke1 {[%clk 0:00:04.2]} 61... Rh2+ {[%clk 0:00:13]} 62. Kf1
{[%clk 0:00:04.6]} 62... Rxh7 {[%clk 0:00:11.1]} 63. Rc6 {[%clk 0:00:04.2]}
63... Bc3 {[%clk 0:00:09.7]} 64. Kg2 {[%clk 0:00:04.5]} 64... Rf7 {[%clk
0:00:09.1]} 65. Re6 {[%clk 0:00:04]} 65... Kc4 {[%clk 0:00:08.3]} 66. Kg3 {[%clk
0:00:03.2]} 66... Kd5 {[%clk 0:00:08.7]} 67. Re8 {[%clk 0:00:03.4]} 67... Be1+
{[%clk 0:00:08.7]} 68. Kg2 {[%clk 0:00:03.3]} 68... Bc3 {[%clk 0:00:08.3]} 69.
Rd8+ {[%clk 0:00:03.9]} 69... Ke6 {[%clk 0:00:08.7]} 70. Rc8 {[%clk 0:00:04.3]}
70... Bd4 {[%clk 0:00:08.6]} 71. Rc6+ {[%clk 0:00:04.8]} 71... Kd5 {[%clk
0:00:08.6]} 72. Ra6 {[%clk 0:00:05.7]} 72... Rb7 {[%clk 0:00:08.8]} 73. Ra5+
{[%clk 0:00:06]} 73... Ke6 {[%clk 0:00:09.2]} 74. Ra2 {[%clk 0:00:06.9]} 74...
Kf6 {[%clk 0:00:09.1]} 75. Re2 {[%clk 0:00:07.4]} 75... Rb6 {[%clk 0:00:09.5]}
76. Rc2 {[%clk 0:00:07.7]} 76... Kg5 {[%clk 0:00:09.6]} 77. Re2 {[%clk 0:00:08]}
77... Rb2 {[%clk 0:00:07.7]} 78. Rxb2 {[%clk 0:00:07.2]} 78... Bxb2 {[%clk
0:00:08.6]} 79. Kf2 {[%clk 0:00:07.3]} 79... Bc1 {[%clk 0:00:08.7]} 80. Ke2
{[%clk 0:00:06.8]} 80... Kf4 {[%clk 0:00:09.1]} 81. Kf2 {[%clk 0:00:06]} 81...
Be3+ {[%clk 0:00:09.3]} 82. Ke2 {[%clk 0:00:06.5]} 82... Bd4 {[%clk 0:00:09.6]}
83. Kd3 {[%clk 0:00:05.9]} 83... Kxf3 {[%clk 0:00:08.3]} 84. g5 {[%clk
0:00:06.5]} 84... Ba1 {[%clk 0:00:08.7]} 85. g6 {[%clk 0:00:04.6]} 85... e4+
{[%clk 0:00:09.1]} 0-1